bitfinex/quotes_BTCUSD_20250928
["timestamp","ask_amount","ask_price","bid_price","bid_amount"]
[1759060208211,7.48932888,109610.0,109600.0,0.02062731]
[1759060208426,7.96504888,109610.0,109600.0,0.02062731]
[1759060208828,7.86992888,109610.0,109600.0,0.02062731]
[1759060209034,7.96504888,109610.0,109600.0,0.02062731]
[1759060209457,7.20420888,109610.0,109600.0,0.02062731]
[1759060209661,7.96504888,109610.0,109600.0,0.02062731]
[1759060210064,7.98834152,109610.0,109600.0,0.02062731]
[1759060210914,7.13879005,109610.0,109600.0,0.02276731]
[1759060211125,7.88486204,109610.0,109600.0,0.02584731]
[1759060211749,7.12402204,109610.0,109600.0,0.02584731]
[1759060211999,7.88486204,109610.0,109600.0,0.02584731]
[1759060214021,7.89918032,109610.0,109600.0,0.02584731]
[1759060214560,7.51898032,109610.0,109600.0,0.02584731]
[1759060214771,7.86910842,109610.0,109600.0,0.02584731]
[1759060215800,7.95781989,109610.0,109600.0,0.02584731]
[1759060219210,7.72987432,109610.0,109600.0,0.02584731]
[1759060219408,7.64116285,109610.0,109600.0,0.02584731]
[1759060222121,7.65548038,109610.0,109600.0,0.02584731]
[1759060227370,7.64116285,109610.0,109600.0,0.02584731]
[1759060230586,7.65547996,109610.0,109600.0,0.02584731]
[1759060230775,7.74419143,109610.0,109600.0,0.02584731]
[1759060231286,7.65547996,109610.0,109600.0,0.02584731]
[1759060236083,7.65351225,109610.0,109600.0,0.02276731]
[1759060236208,7.47064008,109610.0,109600.0,0.02276731]
[1759060236410,7.09000008,109610.0,109600.0,0.02276731]
[1759060237248,7.09000008,109610.0,109600.0,0.02591731]
[1759060237517,7.07568297,109610.0,109600.0,0.02591731]
[1759060238761,7.07523297,109610.0,109600.0,0.02591731]
[1759060239367,7.16394444,109610.0,109600.0,0.02591731]
[1759060240713,7.16439444,109610.0,109600.0,0.02276731]
[1759060240942,7.17871152,109610.0,109600.0,0.02276731]
[1759060242569,7.17871152,109610.0,109600.0,0.02062731]
[1759060247102,7.16439444,109610.0,109600.0,0.02062731]
[1759060250371,7.17871181,109610.0,109600.0,0.02062731]
[1759060250581,7.17871181,109610.0,109600.0,0.02275731]
[1759060252047,7.17871181,109610.0,109600.0,0.02062731]
[1759060257431,7.16439444,109610.0,109600.0,0.02062731]
[1759060260531,7.17871181,109610.0,109600.0,0.02062731]
[1759060267507,7.16439444,109610.0,109600.0,0.02062731]
[1759060270552,7.17871167,109610.0,109600.0,0.02062731]
[1759060271642,7.0900002,109610.0,109600.0,0.02062731]
[1759060274586,6.9055157,109610.0,109600.0,0.02062731]
[1759060277443,6.89119847,109610.0,109600.0,0.02062731]
[1759060280415,6.90551595,109610.0,109600.0,0.02062731]
[1759060283116,6.90551595,109610.0,109600.0,0.03579531]
[1759060283237,6.99422742,109610.0,109600.0,0.03579531]
[1759060286373,6.99450742,109610.0,109600.0,0.03579531]
[1759060287437,6.98018994,109610.0,109600.0,0.03579531]
[1759060288476,6.9568973,109610.0,109600.0,0.03579531]
[1759060290369,6.9566173,109610.0,109600.0,0.03579531]
[1759060290571,6.9709342,109610.0,109600.0,0.03579531]
[1759060297317,6.5909342,109610.0,109600.0,0.03579531]
[1759060297441,6.9567373,109610.0,109600.0,0.03579531]
[1759060297642,6.9564573,109610.0,109600.0,0.03579531]
[1759060298322,6.5763373,109610.0,109600.0,0.03579531]
[1759060298534,7.3370573,109610.0,109600.0,0.03579531]
[1759060300526,7.3513746,109610.0,109600.0,0.03579531]
[1759060302609,6.5906546,109610.0,109600.0,0.03579531]
[1759060302760,7.3513746,109610.0,109600.0,0.03579531]
[1759060306425,6.5906546,109610.0,109600.0,0.03579531]
[1759060306640,6.9707346,109610.0,109600.0,0.03579531]
[1759060307393,6.9564173,109610.0,109600.0,0.03579531]
[1759060308453,6.5763373,109610.0,109600.0,0.03579531]
[1759060308632,6.9564173,109610.0,109600.0,0.03579531]
[1759060310772,6.75450716,109610.0,109600.0,0.03579531]
[1759060311198,6.65938716,109610.0,109600.0,0.03579531]
[1759060311408,6.37442716,109610.0,109600.0,0.03579531]
[1759060311632,6.75450716,109610.0,109600.0,0.03579531]
[1759060312057,6.76882447,109610.0,109600.0,0.03579531]
[1759060314391,7.14942447,109610.0,109600.0,0.03795531]
[1759060317476,7.13510716,109610.0,109600.0,0.03795531]
[1759060320571,7.14942446,109610.0,109600.0,0.03795531]
[1759060321530,6.76882446,109610.0,109600.0,0.03795531]
[1759060322363,6.67366446,109610.0,109600.0,0.03795531]
[1759060322568,7.14938446,109610.0,109600.0,0.03795531]
[1759060323253,6.38874446,109610.0,109600.0,0.03795531]
[1759060323406,7.14938446,109610.0,109600.0,0.03795531]
[1759060327150,7.14966446,109610.0,109600.0,0.02579531]
[1759060327362,6.37442716,109610.0,109600.0,0.02795531]
[1759060327581,6.66530569,109610.0,109600.0,0.03090531]
[1759060330013,6.57018569,109610.0,109600.0,0.03090531]
[1759060330275,6.66530569,109610.0,109600.0,0.03090531]
[1759060330443,6.58450351,109610.0,109600.0,0.03090531]
[1759060330657,6.67962351,109610.0,109600.0,0.03090531]
[1759060330869,6.29958351,109610.0,109600.0,0.03090531]
[1759060331074,6.67962351,109610.0,109600.0,0.03090531]
[1759060331279,6.76833498,109610.0,109600.0,0.03090531]
[1759060334871,6.38829498,109610.0,109600.0,0.03090531]
[1759060335127,6.76833498,109610.0,109600.0,0.03090531]
[1759060337488,6.75401716,109610.0,109600.0,0.03090531]
[1759060340414,6.76833404,109610.0,109600.0,0.03090531]
[1759060340650,6.76878404,109610.0,109600.0,0.03090531]
[1759060341310,6.76878404,109610.0,109600.0,0.02795531]
[1759060342292,6.79207473,109610.0,109600.0,0.02579531]
[1759060342853,6.58775461,109610.0,109600.0,0.02579531]
[1759060345659,6.58758729,109610.0,109600.0,0.02579531]
[1759060347560,6.57327041,109610.0,109600.0,0.02579531]
[1759060348513,6.54997972,109610.0,109600.0,0.02579531]
[1759060350429,6.564297,109610.0,109600.0,0.02579531]
[1759060357797,6.54997972,109610.0,109600.0,0.02579531]
[1759060360465,6.56429668,109610.0,109600.0,0.02579531]
[1759060365070,6.58758737,109610.0,109600.0,0.02579531]
[1759060365730,6.56429668,109610.0,109600.0,0.02579531]
[1759060367651,6.54997972,109610.0,109600.0,0.02579531]
[1759060370528,6.56429731,109610.0,109600.0,0.02579531]
[1759060377545,6.54997972,109610.0,109600.0,0.02579531]
[1759060378698,6.16993972,109610.0,109600.0,0.02579531]
[1759060378899,6.54989972,109610.0,109600.0,0.02579531]
[1759060380601,6.18425688,109610.0,109600.0,0.02579531]
[1759060380830,6.56421688,109610.0,109600.0,0.02788531]
[1759060383045,6.39339784,109610.0,109600.0,0.02788531]
[1759060383396,6.42354974,109610.0,109600.0,0.02579531]
[1759060383743,6.44505922,109610.0,109600.0,0.02579531]
[1759060383950,6.35634775,109610.0,109600.0,0.02579531]
[1759060384902,6.35662775,109610.0,109600.0,0.02579531]
[1759060385233,6.33511827,109610.0,109600.0,0.02579531]
[1759060385433,6.35634775,109610.0,109600.0,0.02579531]
[1759060385660,6.33511827,109610.0,109600.0,0.02579531]
[1759060385861,6.42382974,109610.0,109600.0,0.02579531]
[1759060387744,6.42354974,109610.0,109600.0,0.02579531]
[1759060388173,6.40923258,109610.0,109600.0,0.02579531]
[1759060390903,6.69467258,109610.0,109600.0,0.02579531]
[1759060391201,6.32838996,109610.0,109600.0,0.02579531]
[1759060391507,6.80410996,109610.0,109600.0,0.02579531]
[1759060392128,6.04358996,109610.0,109600.0,0.02579531]
[1759060392333,6.61577177,109610.0,109600.0,0.02579531]
[1759060397379,6.60145439,109610.0,109600.0,0.02579531]
[1759060400636,6.61577177,109610.0,109600.0,0.02579531]
[1759060406933,6.43324714,109610.0,109600.0,0.02579531]
[1759060407304,6.41892976,109610.0,109600.0,0.02579531]
[1759060409353,6.43324717,109610.0,109600.0,0.02579531]
[1759060420612,6.43324717,109610.0,109600.0,0.01615531]
[1759060420815,6.45718717,109610.0,109600.0,0.01615531]
[1759060423989,6.45714717,109610.0,109600.0,0.01615531]
[1759060424257,5.69666717,109610.0,109600.0,0.01615531]
[1759060424450,6.45714717,109610.0,109600.0,0.01615531]
[1759060426668,5.69666717,109610.0,109600.0,0.01615531]
[1759060426975,6.45714717,109610.0,109600.0,0.01615531]
[1759060427725,6.44282976,109610.0,109600.0,0.01615531]
[1759060427933,6.44282976,109610.0,109600.0,0.01813531]
[1759060428853,5.96710976,109610.0,109600.0,0.02135531]
[1759060429070,6.44282976,109610.0,109600.0,0.01813531]
[1759060430369,5.68234976,109610.0,109600.0,0.01813531]
[1759060430577,6.44282976,109610.0,109600.0,0.01813531]
[1759060431360,5.69666769,109610.0,109600.0,0.01813531]
[1759060431568,6.45714769,109610.0,109600.0,0.01813531]
[1759060434814,6.45714769,109610.0,109600.0,0.01615531]
[1759060437388,6.44282976,109610.0,109600.0,0.01615531]
[1759060437602,6.46433924,109610.0,109600.0,0.01615531]
[1759060437810,6.44282976,109610.0,109600.0,0.01615531]
[1759060440633,6.35366829,109610.0,109600.0,0.02113531]
[1759060440851,6.36822622,109610.0,109600.0,0.02113531]
[1759060441269,5.60750622,109610.0,109600.0,0.02113531]
[1759060441478,6.36867622,109610.0,109600.0,0.02113531]
[1759060441658,6.36867622,109610.0,109600.0,0.01615531]
[1759060441891,6.45738769,109610.0,109600.0,0.01615531]
[1759060443108,6.45738769,109610.0,109600.0,0.01818531]
[1759060443437,6.45693769,109610.0,109600.0,0.02113531]
[1759060443666,6.45738769,109610.0,109600.0,0.02113531]
[1759060444280,6.45738769,109610.0,109600.0,0.01818531]
[1759060444522,6.45738769,109610.0,109600.0,0.01615531]
[1759060445323,5.69621769,109610.0,109600.0,0.02113531]
[1759060445523,6.45705769,109610.0,109600.0,0.02113531]
[1759060446691,6.47856717,109610.0,109600.0,0.02113531]
[1759060447573,6.46424924,109610.0,109600.0,0.02113531]
[1759060448863,6.44273976,109610.0,109600.0,0.02113531]
[1759060449070,6.44318976,109610.0,109600.0,0.01818531]
[1759060449519,6.22546853,109610.0,109600.0,0.01818531]
[1759060450695,6.23978586,109610.0,109600.0,0.01818531]
[1759060451124,6.23978586,109610.0,109600.0,0.01615531]
[1759060454228,6.01435874,109610.0,109600.0,0.01615531]
[1759060455662,6.03586822,109610.0,109600.0,0.01615531]
[1759060455824,6.01435874,109610.0,109600.0,0.01615531]
[1759060457320,6.01390874,109610.0,109600.0,0.02134531]
[1759060457457,5.99959141,109610.0,109600.0,0.02134531]
[1759060457669,6.00004141,109610.0,109600.0,0.02134531]
[1759060460643,6.01435932,109610.0,109600.0,0.02134531]
[1759060461052,6.01435932,109610.0,109600.0,0.01615531]
[1759060461480,6.01435932,109610.0,109600.0,0.01820531]
[1759060461637,6.01390932,109610.0,109600.0,0.02136531]
[1759060462081,6.01435932,109610.0,109600.0,0.02136531]
[1759060462924,6.01435932,109610.0,109600.0,0.01820531]
[1759060463825,5.91915932,109610.0,109600.0,0.01820531]
[1759060464037,5.92556785,109610.0,109600.0,0.01615531]
[1759060466455,5.16480785,109610.0,109600.0,0.01615531]
[1759060466645,5.92556785,109610.0,109600.0,0.01820531]
[1759060466968,5.92556785,109610.0,109600.0,0.02136531]
[1759060467586,5.91124994,109610.0,109600.0,0.02136531]
[1759060467790,5.15048994,109610.0,109600.0,0.02136531]
[1759060467996,5.91120994,109610.0,109600.0,0.02136531]
[1759060468629,5.166385,109610.0,109600.0,0.02136531]
[1759060468972,5.926655,109610.0,109600.0,0.02136531]
[1759060470778,5.94097282,109610.0,109600.0,0.02136531]
[1759060472516,5.92507776,109610.0,109600.0,0.02136531]
[1759060476659,5.92552776,109610.0,109600.0,0.02136531]
[1759060476862,5.92552776,109610.0,109600.0,0.01820531]
[1759060477527,5.91120994,109610.0,109600.0,0.01820531]
[1759060478453,5.91120994,109610.0,109600.0,0.01615531]
[1759060480521,5.92552768,109610.0,109600.0,0.01615531]
[1759060481850,6.01423915,109610.0,109600.0,0.01615531]
[1759060487558,5.99992141,109610.0,109600.0,0.01615531]
[1759060490878,6.01423904,109610.0,109600.0,0.01615531]
[1759060491536,6.03574852,109610.0,109600.0,0.01615531]
[1759060491997,6.01423904,109610.0,109600.0,0.01615531]
[1759060493237,5.83420713,109610.0,109600.0,0.01615531]
[1759060495711,5.83420713,109610.0,109600.0,0.01812531]
[1759060496260,5.74549566,109610.0,109600.0,0.01812531]
[1759060496685,5.74549566,109610.0,109600.0,0.02131531]
[1759060499083,5.74533566,109610.0,109600.0,0.02131531]
[1759060499299,4.98477566,109610.0,109600.0,0.02131531]
[1759060499501,5.74533566,109610.0,109600.0,0.02131531]
[1759060499745,5.63040244,109610.0,109600.0,0.02131531]
[1759060500183,5.54124097,109610.0,109600.0,0.02131531]
[1759060502675,5.55555808,109610.0,109600.0,0.02131531]
[1759060503571,5.27071808,109610.0,109600.0,0.02131531]
[1759060503796,5.55559808,109610.0,109600.0,0.02131531]
[1759060506040,5.55604808,109610.0,109600.0,0.02131531]
[1759060506256,5.64475955,109610.0,109600.0,0.02131531]
[1759060506905,5.64471955,109610.0,109600.0,0.02131531]
[1759060507282,5.63040244,109610.0,109600.0,0.02131531]
[1759060510666,5.64472007,109610.0,109600.0,0.02131531]
[1759060513180,5.5555586,109610.0,109600.0,0.02131531]
[1759060513843,5.5560086,109610.0,109600.0,0.02131531]
[1759060521737,5.5555586,109610.0,109600.0,0.02131531]
[1759060525621,5.5560086,109610.0,109600.0,0.02131531]
[1759060528229,5.5560086,109610.0,109600.0,0.01812531]
[1759060528387,5.5560086,109610.0,109600.0,0.02131531]
[1759060529215,4.7954486,109610.0,109600.0,0.02131531]
[1759060529413,5.5559686,109610.0,109600.0,0.02131531]
[1759060529791,5.5811433,109610.0,109600.0,0.02131531]
[1759060530203,5.5811433,109610.0,109600.0,0.01812531]
[1759060530442,5.5811433,109610.0,109600.0,0.02131531]
[1759060530657,5.4860233,109610.0,109600.0,0.02131531]
[1759060530869,5.5811433,109610.0,109600.0,0.02131531]
[1759060531071,4.7949986,109610.0,109600.0,0.02131531]
[1759060531283,5.5555186,109610.0,109600.0,0.02131531]
[1759060536563,5.5559686,109610.0,109600.0,0.02131531]
[1759060537074,5.5559686,109610.0,109600.0,0.01812531]
[1759060537216,5.5559686,109610.0,109600.0,0.01615531]
[1759060539688,5.5559686,109610.0,109600.0,0.01823531]
[1759060541379,5.5559286,109610.0,109600.0,0.02142531]
[1759060541532,4.7949986,109610.0,109600.0,0.02142531]
[1759060541752,5.5554786,109610.0,109600.0,0.02142531]
[1759060542763,4.7949986,109610.0,109600.0,0.02142531]
[1759060542965,5.5554786,109610.0,109600.0,0.02142531]
[1759060546142,5.37752462,109610.0,109600.0,0.02142531]
[1759060549874,4.61704462,109610.0,109600.0,0.02142531]
[1759060550086,4.99692462,109610.0,109600.0,0.02142531]
[1759060551520,5.17938972,109610.0,109600.0,0.02142531]
[1759060553488,5.00299708,109610.0,109600.0,0.02142531]
[1759060558605,4.7835162,109610.0,109600.0,0.02142531]
[1759060558824,4.7835162,109610.0,109600.0,0.01823531]
[1759060559340,4.7835162,109610.0,109600.0,0.02144531]
[1759060562395,4.7830662,109610.0,109600.0,0.02144531]
[1759060563673,4.4031862,109610.0,109600.0,0.02144531]
[1759060563874,4.7830662,109610.0,109600.0,0.02144531]
[1759060567624,4.76874857,109610.0,109600.0,0.02144531]
[1759060568417,4.76919857,109610.0,109600.0,0.02144531]
[1759060570981,4.78351767,109610.0,109600.0,0.02144531]
[1759060574546,4.78351767,109610.0,109600.0,0.01823531]
[1759060576740,4.68794767,109610.0,109600.0,0.02116531]
[1759060576937,4.78306767,109610.0,109600.0,0.02116531]
[1759060577353,4.76874857,109610.0,109600.0,0.02116531]
[1759060577885,4.45383667,109610.0,109600.0,0.02116531]
[1759060578108,4.76874857,109610.0,109600.0,0.02116531]
[1759060578319,4.73859667,109610.0,109600.0,0.02116531]
[1759060580670,4.75291547,109610.0,109600.0,0.02116531]
[1759060581945,4.73859667,109610.0,109600.0,0.02116531]
[1759060582393,3.83625157,109610.0,109600.0,0.02116531]
[1759060582634,0.05240615,109610.0,109600.0,0.13842617]
[1759060582873,0.02010132,109610.0,109600.0,0.96484016]
[1759060583096,0.00677592,109610.0,109600.0,1.77162399]
[1759060583330,0.03140168,109650.0,109640.0,0.1]
[1759060583629,0.19150166,109660.0,109650.0,0.05]
[1759060583858,8.0,109660.0,109650.0,0.05]
[1759060584283,8.00948691,109660.0,109650.0,0.05]
[1759060584496,8.19191533,109660.0,109650.0,0.05]
[1759060584712,8.19191533,109660.0,109650.0,0.049]
[1759060584931,8.20622431,109660.0,109650.0,0.049]
[1759060585164,8.54622431,109660.0,109650.0,0.061]
[1759060585369,8.56986431,109660.0,109650.0,0.061]
[1759060585579,8.38748241,109660.0,109650.0,0.061]
[1759060586025,8.56986431,109660.0,109650.0,0.061]
[1759060586471,8.56986431,109660.0,109650.0,0.069]
[1759060587095,8.38748241,109660.0,109650.0,0.069]
[1759060588469,8.56986431,109660.0,109650.0,0.069]
[1759060588846,8.56986431,109660.0,109650.0,0.09644829]
[1759060589634,8.35458923,109660.0,109650.0,0.09644829]
[1759060589856,8.56986431,109660.0,109650.0,0.09644829]
[1759060590061,8.55555533,109660.0,109650.0,0.069]
[1759060593195,8.56986424,109660.0,109650.0,0.069]
[1759060599398,8.57198424,109660.0,109650.0,0.069]
[1759060599602,8.57513424,109660.0,109650.0,0.069]
[1759060599813,8.88906253,109660.0,109650.0,0.069]
[1759060599967,8.87475362,109660.0,109650.0,0.069]
[1759060601758,8.58827362,109660.0,109650.0,0.069]
[1759060601956,8.58300362,109660.0,109650.0,0.08723985]
[1759060602719,8.40062172,109660.0,109650.0,0.069]
[1759060602974,8.59731255,109660.0,109650.0,0.069]
[1759060604525,8.41493065,109660.0,109650.0,0.069]
[1759060606316,8.38748236,109660.0,109650.0,0.069]
[1759060606512,8.04748236,109660.0,109650.0,0.069]
[1759060606743,8.38748236,109660.0,109650.0,0.09644698]
[1759060607814,0.38748236,109660.0,109650.0,0.09644698]
[1759060608042,0.31416697,109670.0,109660.0,0.049]
[1759060608267,8.31416697,109670.0,109660.0,0.049]
[1759060608483,8.02744697,109670.0,109660.0,0.07307]
[1759060609371,8.21193224,109670.0,109660.0,0.07307]
[1759060610029,8.57557224,109670.0,109660.0,0.07907]
[1759060610476,8.57557224,109670.0,109660.0,0.08807]
[1759060610698,8.4004917,109670.0,109660.0,0.10630819]
[1759060611118,8.37304473,109670.0,109660.0,0.08807]
[1759060612192,8.38735204,109670.0,109660.0,0.08807]
[1759060612417,8.38735204,109670.0,109660.0,0.11551369]
[1759060612626,8.38735204,109670.0,109660.0,0.08807]
[1759060616347,8.37304473,109670.0,109660.0,0.08807]
[1759060619580,8.38735199,109670.0,109660.0,0.08807]
[1759060620372,0.38735199,109670.0,109660.0,0.10630819]
[1759060622309,0.38939199,109670.0,109660.0,0.10630819]
[1759060625991,0.39241199,109670.0,109660.0,0.10630819]
[1759060627526,0.37810473,109670.0,109660.0,0.10630819]
[1759060630386,0.3924117,109670.0,109660.0,0.10630819]
[1759060632315,0.0473517,109670.0,109660.0,0.33869009]
[1759060632533,0.0473517,109670.0,109660.0,0.3204519]
[1759060633390,0.0473517,109670.0,109660.0,0.13807]
[1759060636227,0.0473517,109670.0,109660.0,0.33869009]
[1759060636432,0.0473517,109670.0,109660.0,0.3204519]
[1759060637343,0.37004235,109680.0,109670.0,0.049]
[1759060637520,8.37008887,109680.0,109670.0,0.33496]
[1759060637730,8.37207887,109680.0,109670.0,0.35985]
[1759060638514,8.37207887,109680.0,109670.0,0.36285]
[1759060638726,8.38138338,109680.0,109670.0,0.36485]
[1759060640110,8.38138338,109680.0,109670.0,0.07889]
[1759060640317,8.38138338,109680.0,109670.0,0.36477]
[1759060640756,8.38138338,109680.0,109670.0,0.36177]
[1759060641200,8.38138338,109680.0,109670.0,0.36377]
[1759060641401,8.38138338,109680.0,109670.0,0.36177]
[1759060641602,8.38138338,109680.0,109670.0,0.35977]
[1759060641804,8.38138338,109680.0,109670.0,0.36377]
[1759060642016,8.38138338,109680.0,109670.0,0.36577]
[1759060642424,0.38138338,109680.0,109670.0,0.36377]
[1759060642950,0.38138338,109680.0,109670.0,0.36777]
[1759060643981,0.38138338,109680.0,109670.0,0.08189]
[1759060644181,0.38138338,109680.0,109670.0,0.46281]
[1759060645490,0.56373203,109680.0,109670.0,0.08189]
[1759060645857,0.56373203,109680.0,109670.0,0.26205]
[1759060646274,0.56373203,109680.0,109670.0,0.08189]
[1759060646469,0.56373203,109680.0,109670.0,0.36765]
[1759060646618,0.56373203,109680.0,109670.0,0.21961]
[1759060648358,0.56373203,109680.0,109670.0,0.08189]
[1759060648580,0.56373203,109680.0,109670.0,0.36765]
[1759060649969,0.38138338,109680.0,109670.0,0.36765]
[1759060650915,0.56373203,109680.0,109670.0,0.36765]
[1759060653218,0.56373203,109680.0,109670.0,0.08189]
[1759060653468,0.56373203,109680.0,109670.0,0.36753]
[1759060664437,0.56373203,109680.0,109670.0,0.08189]
[1759060664646,8.64058947,109680.0,109670.0,0.08189]
[1759060664860,8.92606947,109680.0,109670.0,0.02964]
[1759060665070,8.92610947,109680.0,109670.0,0.02964]
[1759060666167,8.92610947,109680.0,109670.0,0.02564]
[1759060666168,8.84925203,109680.0,109670.0,0.02564]
[1759060666378,8.84925203,109680.0,109670.0,0.02764]
[1759060666567,8.84925203,109680.0,109670.0,0.02364]
[1759060666998,8.84925203,109680.0,109670.0,0.02564]
[1759060667428,8.56373203,109680.0,109670.0,0.02564]
[1759060667650,8.84925203,109680.0,109670.0,0.02564]
[1759060668069,8.89902336,109680.0,109670.0,0.02564]
[1759060670557,8.89898336,109680.0,109670.0,0.02564]
[1759060670772,0.52239854,109650.0,109640.0,0.049]
[1759060670978,0.80795854,109650.0,109640.0,0.049]
[1759060671202,8.83277854,109650.0,109640.0,0.049]
[1759060671435,8.83810854,109650.0,109640.0,0.049]
[1759060671648,8.55254854,109650.0,109640.0,0.049]
[1759060671851,8.83810854,109650.0,109640.0,0.049]
[1759060672058,8.83810854,109650.0,109640.0,0.053]
[1759060672899,8.83810854,109650.0,109640.0,0.07685]
[1759060673112,8.83810854,109650.0,109640.0,0.08085]
[1759060674365,8.83806854,109650.0,109640.0,0.08085]
[1759060676328,8.61933299,109650.0,109640.0,0.08085]
[1759060676548,8.80173153,109650.0,109640.0,0.08085]
[1759060677608,8.51621153,109650.0,109640.0,0.08085]
[1759060677827,8.80169153,109650.0,109640.0,0.08085]
[1759060679766,8.51088153,109650.0,109640.0,0.08593]
[1759060680200,8.51088153,109650.0,109640.0,0.08296]
[1759060680627,8.51088153,109650.0,109640.0,0.08593]
[1759060681282,8.51088153,109650.0,109640.0,0.08296]
[1759060681283,8.51300153,109650.0,109640.0,0.08296]
[1759060681541,8.51088153,109650.0,109640.0,0.08296]
[1759060681741,8.51088153,109650.0,109640.0,0.08593]
[1759060683181,8.51088153,109650.0,109640.0,0.08296]
[1759060683967,8.20721854,109650.0,109640.0,0.08296]
[1759060684219,0.02482,109650.0,109640.0,0.08593]
[1759060685632,0.02482,109650.0,109640.0,0.15417151]
[1759060685851,0.02482,109650.0,109640.0,0.31834517]
[1759060686489,0.02482,109650.0,109640.0,0.31434517]
[1759060686709,0.02482,109650.0,109640.0,0.13193]
[1759060686936,0.02482,109650.0,109640.0,0.12793]
[1759060687163,0.02482,109650.0,109640.0,0.13193]
[1759060688019,0.02482,109650.0,109640.0,0.13693]
[1759060688658,0.02482,109650.0,109640.0,0.31934517]
[1759060689754,0.02482,109650.0,109640.0,0.13693]
[1759060692561,0.02482,109650.0,109640.0,0.31934517]
[1759060694667,0.00298,109670.0,109650.0,0.099]
[1759060694800,0.00298,109670.0,109660.0,0.01823819]
[1759060695024,8.00298,109670.0,109660.0,0.06937819]
[1759060695233,8.00202,109670.0,109660.0,0.09227819]
[1759060695849,0.00202,109670.0,109660.0,0.09227819]
[1759060697228,0.06058338,109680.0,109670.0,0.049]
[1759060697447,0.03615338,109680.0,109670.0,0.33566]
[1759060697635,0.03615338,109680.0,109670.0,0.36203]
[1759060697767,0.03615338,109680.0,109670.0,0.07627]
[1759060697994,0.03615338,109680.0,109670.0,0.12627]
[1759060698653,0.03615338,109680.0,109670.0,0.61291179]
[1759060698830,0.03615338,109680.0,109670.0,0.69271527]
[1759060699030,0.02684887,109680.0,109670.0,0.63082717]
[1759060699576,0.02684887,109680.0,109670.0,0.72298717]
[1759060699812,0.02684887,109680.0,109670.0,0.34178717]
[1759060700035,0.02684887,109680.0,109670.0,0.34778717]
[1759060700246,0.02684887,109680.0,109670.0,0.34478717]
[1759060700455,0.02684887,109680.0,109670.0,0.63110717]
[1759060700674,0.02684887,109680.0,109670.0,0.34978717]
[1759060700885,0.02684887,109680.0,109670.0,0.72614717]
[1759060701095,0.02684887,109680.0,109670.0,1.33011067]
[1759060701315,0.02684887,109680.0,109670.0,1.32411067]
[1759060701522,0.02684887,109680.0,109670.0,0.57147067]
[1759060701734,0.02684887,109680.0,109670.0,1.25023067]
[1759060701944,0.02684887,109680.0,109670.0,1.34527067]
[1759060702173,0.02684887,109680.0,109670.0,0.57447067]
[1759060702393,0.02684887,109680.0,109670.0,1.32427067]
[1759060702615,0.02684887,109680.0,109670.0,0.57747067]
[1759060702616,0.02320141,109680.0,109670.0,0.57747067]
[1759060703037,0.02320141,109680.0,109670.0,1.33935067]
[1759060703253,0.02320141,109680.0,109670.0,0.57747067]
[1759060703470,0.02320141,109680.0,109670.0,1.24435067]
[1759060703686,0.02320141,109680.0,109670.0,0.87515067]
[1759060703901,0.02320141,109680.0,109670.0,0.58847067]
[1759060704113,0.02320141,109680.0,109670.0,1.69043067]
[1759060704789,0.02320141,109680.0,109670.0,1.59551067]
[1759060705010,0.02320141,109680.0,109670.0,1.69055067]
[1759060705276,0.02320141,109680.0,109670.0,1.69059067]
[1759060705485,0.02320141,109680.0,109670.0,0.92847067]
[1759060705726,0.02320141,109680.0,109670.0,1.69051067]
[1759060705960,0.02320141,109680.0,109670.0,0.92847067]
[1759060706482,0.02320141,109680.0,109670.0,1.69063067]
[1759060706695,0.02320141,109680.0,109670.0,1.67567067]
[1759060706948,0.02320141,109680.0,109670.0,1.66467067]
[1759060707450,0.02320141,109680.0,109670.0,1.67767067]
[1759060707688,0.02320141,109680.0,109670.0,1.66467067]
[1759060707916,0.02320141,109680.0,109670.0,1.67867067]
[1759060708140,0.02320141,109680.0,109670.0,1.69667067]
[1759060708379,0.2527,109700.0,109690.0,0.84673392]
[1759060708619,0.25316522,109700.0,109690.0,0.84877392]
[1759060708846,0.25316522,109700.0,109690.0,1.63815392]
[1759060709278,0.25316522,109700.0,109690.0,1.66557648]
[1759060709851,0.25316522,109700.0,109690.0,1.68657648]
[1759060710450,0.25316522,109700.0,109690.0,1.69957648]
[1759060711126,0.25316522,109700.0,109690.0,1.69965648]
[1759060711332,0.25316522,109700.0,109690.0,1.69969648]
[1759060711548,0.25316522,109700.0,109690.0,1.31265648]
[1759060711694,0.25316522,109700.0,109690.0,1.59672648]
[1759060711917,0.25527522,109700.0,109690.0,1.59672648]
[1759060712113,0.25824522,109700.0,109690.0,1.59672648]
[1759060712325,0.25527522,109700.0,109690.0,0.93456648]
[1759060712534,0.25527522,109700.0,109690.0,1.57572648]
[1759060712739,0.25316522,109700.0,109690.0,1.33568648]
[1759060712947,0.25316522,109700.0,109690.0,0.87864648]
[1759060713118,0.25316522,109700.0,109690.0,1.24564648]
[1759060713322,0.25316522,109700.0,109690.0,1.34064648]
[1759060713556,0.25316522,109700.0,109690.0,1.35164648]
[1759060714610,0.25316522,109700.0,109690.0,1.33364648]
[1759060714940,0.25316522,109700.0,109690.0,1.35164648]
[1759060718194,0.07611436,109700.0,109690.0,1.35164648]
[1759060718725,0.07822436,109700.0,109690.0,1.35164648]
[1759060718919,0.07822436,109700.0,109690.0,0.58752648]
[1759060719122,0.08119436,109700.0,109690.0,1.34932648]
[1759060719386,0.08119436,109700.0,109690.0,1.24932648]
[1759060720223,0.08119436,109700.0,109690.0,0.71332648]
[1759060720437,0.08119436,109700.0,109690.0,0.47652648]
[1759060720645,0.08119436,109700.0,109690.0,0.86832648]
[1759060721066,0.08119436,109700.0,109690.0,0.46852648]
[1759060721293,0.08119436,109700.0,109690.0,0.85032648]
[1759060721502,0.08119436,109700.0,109690.0,0.85532648]
[1759060721952,0.08119436,109700.0,109690.0,0.84032648]
[1759060722370,0.08119436,109700.0,109690.0,0.85232648]
[1759060722953,0.08119436,109700.0,109690.0,0.47052648]
[1759060723156,0.08119436,109700.0,109690.0,0.85228648]
[1759060723825,0.08119436,109700.0,109690.0,0.86028648]
[1759060728471,0.07611436,109700.0,109690.0,0.91533648]
[1759060729193,0.07611436,109700.0,109690.0,0.91232648]
[1759060729393,0.07822436,109700.0,109690.0,0.91232648]
[1759060729573,0.08119436,109700.0,109690.0,0.53056648]
[1759060729758,0.08119436,109700.0,109690.0,0.47852648]
[1759060729967,0.08119436,109700.0,109690.0,0.86036648]
[1759060732127,0.08119436,109700.0,109690.0,0.47852648]
[1759060732345,0.08119436,109700.0,109690.0,0.83294392]
[1759060733076,0.08119436,109700.0,109690.0,0.78294392]
[1759060735687,0.08119436,109700.0,109690.0,0.68782392]
[1759060735844,0.08119436,109700.0,109690.0,0.78282392]
[1759060736482,0.08119436,109700.0,109690.0,0.6004919]
[1759060736704,0.08119436,109700.0,109690.0,0.68782392]